bitfinex/quotes_ETHUSD_20250213
["timestamp","ask_amount","ask_price","bid_price","bid_amount"]
[1739459034000,3.0,2640.5,2640.0,3.78777]
[1739459034207,6.0715,2640.6,2639.5,0.77339479]
[1739459034334,6.0715,2640.6,2640.1,3.78763]
[1739459034541,6.0715,2640.6,2639.6,3.78845]
[1739459034892,5.28,2640.6,2639.5,3.77339479]
[1739459035036,0.7666,2640.9,2640.6,3.78701]
[1739459035486,0.7666,2640.9,2640.2,3.78753]
[1739459035697,0.55,2640.8,2639.6,2.18837319]
[1739459035985,0.0075,2640.8,2639.6,5.97677319]
[1739459036155,0.0075,2640.8,2640.3,3.78734]
[1739459036355,0.5575,2640.8,2640.3,3.78734]
[1739459036759,0.5575,2640.8,2640.5,3.7871]
[1739459037745,0.5575,2640.8,2640.3,3.78737]
[1739459037936,0.5575,2640.8,2640.4,3.7872]
[1739459038338,0.7741,2640.9,2640.8,3.78673]
[1739459038339,0.7666,2640.9,2640.8,3.78673]
[1739459038568,0.7789,2641.2,2640.4,0.83379071]
[1739459038769,0.7789,2641.2,2641.0,3.78634]
[1739459038987,5.28,2641.3,2641.1,3.7863]
[1739459039141,5.28,2641.3,2641.0,3.78634]
[1739459039142,6.0952,2641.6,2641.0,7.57269]
[1739459039484,6.0952,2641.6,2640.8,3.7866]
[1739459039485,9.88079,2641.6,2640.8,3.7866]
[1739459039685,0.55,2641.4,2640.8,3.7866]
[1739459039888,0.0075,2641.1,2640.6,3.78693]
[1739459040348,0.55,2640.9,2640.4,4.62105071]
[1739459040687,0.0075,2641.2,2640.7,3.78684]
[1739459040835,3.0,2641.5,2641.0,3.78633]
[1739459041041,0.55,2641.2,2640.7,3.78681]
[1739459041242,0.0075,2641.1,2640.6,3.78701]
[1739459041465,4.3438,2641.1,2640.4,3.78717]
[1739459041772,4.3438,2641.1,2640.0,0.8197]
[1739459041773,3.78702,2640.6,2640.0,3.7878]
[1739459042000,0.04734316,2640.5,2640.0,3.7878]
[1739459042184,0.55,2640.4,2639.6,8.20007319]
[1739459042383,3.83487367,2640.3,2639.7,3.78821]
[1739459042598,3.83487367,2640.3,2639.6,6.002]
[1739459042599,0.0075,2640.1,2639.6,6.002]
[1739459042783,0.55,2640.0,2639.6,6.002]
[1739459043069,0.55,2640.0,2639.6,9.79036]
[1739459043401,0.7868,2640.2,2639.8,3.78807]
[1739459043913,5.28,2640.3,2639.6,6.002]
[1739459044084,5.28,2640.3,2639.8,3.78804]
[1739459044284,0.55,2640.2,2640.0,3.78784]
[1739459044486,5.28,2640.3,2640.2,3.78759]
[1739459044699,5.28,2640.6,2640.5,3.78716]
[1739459045385,6.0401,2641.0,2640.7,3.78676]
[1739459045582,6.0401,2641.0,2640.5,3.78707]
[1739459045911,6.0401,2641.0,2640.7,3.78676]
[1739459046116,6.0401,2641.0,2640.5,3.78709]
[1739459046416,6.0401,2641.0,2640.7,3.78678]
[1739459046624,5.28,2641.0,2640.9,3.78658]
[1739459046966,5.28,2641.6,2641.2,3.78607]
[1739459047170,3.7857,2641.6,2640.9,3.78656]
[1739459047571,0.05482455,2641.5,2640.8,3.78666]
[1739459047820,0.55,2641.3,2640.9,3.78654]
[1739459048069,0.0075,2641.5,2640.5,0.8286]
[1739459048375,0.55,2641.0,2640.6,3.78693]
[1739459048568,0.0075,2640.9,2640.3,3.78736]
[1739459048767,5.28,2640.9,2640.5,3.78707]
[1739459048985,0.0075,2641.5,2639.9,0.7828]
[1739459048986,6.0766,2641.4,2640.7,3.78679]
[1739459049349,0.5575,2641.2,2640.8,3.78671]
[1739459049641,0.0075,2641.2,2640.8,3.78671]
[1739459049826,0.0075,2641.2,2640.9,3.7865]
[1739459050167,3.78666,2640.9,2640.3,4.55973039]
[1739459050444,0.55,2641.1,2640.6,3.78692]
[1739459050645,0.0075,2641.0,2640.3,3.78733]
[1739459050850,3.78711,2640.6,2639.9,3.78795]
[1739459051057,3.78762,2640.2,2639.5,0.8251]
[1739459051193,3.78762,2640.2,2639.6,6.002]
[1739459051399,3.78759,2640.2,2639.6,6.002]
[1739459051708,3.78759,2640.2,2639.6,9.79045]
[1739459051911,0.55,2639.9,2639.6,6.002]
[1739459052129,5.28,2640.2,2639.6,6.002]
[1739459052330,5.28,2640.2,2639.7,3.7882]
[1739459052647,3.78795,2640.0,2639.6,6.002]
[1739459052852,3.78802,2639.9,2639.6,6.002]
[1739459053047,3.78816,2639.8,2639.6,6.002]
[1739459053342,0.55,2639.9,2639.6,6.002]
[1739459053548,3.78778,2640.1,2639.6,6.002]
[1739459053749,0.55,2639.9,2639.6,6.002]
[1739459053951,3.78827,2639.8,2639.6,6.002]
[1739459054129,3.83562429,2639.8,2639.6,6.002]
[1739459054300,1.3955,2639.7,2638.8,0.8323]
[1739459054501,0.55,2639.4,2638.9,3.78945]
[1739459054749,4.33874,2639.4,2638.7,3.78973]
[1739459054926,3.78889,2639.3,2638.7,3.78966]
[1739459055128,3.78905,2639.2,2638.7,3.78966]
[1739459055441,0.55,2639.3,2638.8,3.78958]
[1739459055871,0.55,2639.1,2638.6,3.78988]
[1739459056000,0.55,2639.1,2638.7,3.78972]
[1739459056199,3.78895,2639.3,2638.6,3.78988]
[1739459056200,0.55,2639.2,2638.8,3.78955]
[1739459056644,0.5575,2639.4,2638.8,3.78955]
[1739459056843,4.34632,2639.4,2638.8,3.78955]
[1739459057026,0.55,2639.2,2638.6,3.7898]
[1739459057228,4.3394,2639.0,2638.4,4.53842052]
[1739459057428,0.8083,2638.9,2638.4,3.79009]
[1739459057636,0.55,2638.8,2638.4,3.79009]
[1739459057831,4.33974,2638.8,2638.2,3.79043]
[1739459058206,0.55,2638.8,2638.1,0.75545965]
[1739459058407,0.55,2638.8,2638.3,3.79029]
[1739459058752,3.7899,2638.6,2638.1,0.75545965]
[1739459058904,0.55,2638.5,2638.1,0.75545965]
[1739459059110,0.59737987,2638.5,2638.1,0.75545965]
[1739459059310,0.59737987,2638.5,2638.0,6.003]
[1739459059659,0.55,2638.1,2638.0,6.003]
[1739459060298,0.55,2638.1,2637.7,0.77707455]
[1739459060459,0.55,2638.1,2637.6,3.79121]
[1739459060758,0.55,2638.1,2637.2,3.9369]
[1739459060759,4.34091,2637.9,2637.4,3.79147]
[1739459060963,0.0075,2637.8,2637.4,3.79158]
[1739459061144,0.55,2637.5,2637.2,0.1451]
[1739459061461,7.35675,2637.3,2637.2,0.1451]
[1739459061862,8.19135722,2637.3,2637.2,0.1451]
[1739459062158,22.34395,2637.3,2637.2,0.1451]
[1739459063263,22.66995,2637.3,2637.2,0.1451]
[1739459063858,22.66995,2637.3,2636.8,1.0]
[1739459063859,17.1433,2637.2,2637.1,1e-05]
[1739459064081,22.3233,2637.2,2637.1,1e-05]
[1739459064307,22.6493,2637.2,2637.1,1e-05]
[1739459064499,0.7664,2636.7,2635.4,3.79446]
[1739459064638,0.0075,2636.0,2634.8,6.008]
[1739459064993,3.79417,2635.7,2635.0,0.75176158]
[1739459065199,3.79462,2635.4,2635.0,0.75176158]
[1739459065336,4.34464,2635.3,2635.0,0.75176158]
[1739459065542,4.34464,2635.3,2634.8,6.008]
[1739459065543,0.55,2635.3,2634.8,6.008]
[1739459065758,0.55,2635.2,2634.8,6.008]
[1739459065937,3.79503,2635.1,2634.8,6.008]
[1739459066679,3.79495,2635.1,2634.8,6.008]
[1739459066839,3.79559,2634.7,2634.5,0.1451]
[1739459067659,1.0773,2635.2,2634.5,0.1451]
[1739459067887,3.79492,2635.1,2634.5,0.1451]
[1739459068046,3.79522,2634.9,2634.5,0.1451]
[1739459068248,0.55,2634.9,2634.5,0.1451]
[1739459068683,3.79537,2634.8,2634.5,0.1451]
[1739459069001,0.55,2634.9,2634.5,0.1451]
[1739459069139,0.7513,2635.2,2634.5,0.1451]
[1739459069504,3.7952,2635.0,2634.5,0.1451]
[1739459069795,0.55,2635.1,2634.5,0.1451]
[1739459069972,4.34494,2635.1,2634.5,0.1451]
[1739459070160,3.79507,2635.0,2634.5,0.1451]
[1739459070359,0.3335,2635.5,2634.5,0.621612]
[1739459070594,3.79501,2635.1,2634.5,3.94076]
[1739459070898,0.55,2634.6,2634.5,0.1451]
[1739459071197,4.34564,2634.6,2634.5,0.1451]
[1739459071390,4.35314,2634.6,2634.5,0.1451]
[1739459071622,7.40809133,2634.6,2634.5,0.1451]
[1739459071824,7.40809133,2634.6,2634.5,1e-05]
[1739459071967,8.20329133,2634.6,2634.5,1e-05]
[1739459072161,8.15584,2634.6,2634.5,1e-05]
[1739459072358,0.7952,2634.2,2633.4,1.0]
[1739459072595,0.55,2634.4,2633.4,1.0]
[1739459072596,8.15742,2633.5,2633.4,1.0]
[1739459074613,1.3452,2633.5,2633.4,1.0]
[1739459074778,0.55,2633.5,2633.4,1.0]
[1739459075418,3.7571,2633.8,2633.4,1.0]
[1739459075620,3.327,2634.0,2633.5,3.79718]
[1739459075621,0.327,2634.0,2633.5,3.79718]
[1739459075823,4.12359,2634.0,2633.4,1.0]
[1739459076037,0.0075,2633.6,2633.4,1.0]
[1739459076328,4.36222,2633.5,2633.4,1.0]
[1739459077229,0.55,2633.5,2633.4,1.0]
[1739459078010,0.3345,2633.9,2633.4,1.0]
[1739459078208,0.38196713,2633.9,2633.4,1.0]
[1739459078518,3.79692,2633.8,2633.4,1.0]
[1739459078720,7.59383,2633.8,2633.4,1.0]
[1739459078931,3.79658,2634.0,2633.4,1.0]
[1739459079139,3.79587,2634.5,2633.4,1.0]
[1739459079442,0.04745348,2634.7,2633.8,3.79677]
[1739459079642,0.05495272,2634.7,2633.8,3.79677]
[1739459079940,3.79653,2634.0,2633.4,1.0]
[1739459080241,0.55,2634.0,2633.5,3.79713]
[1739459080439,0.0075,2634.3,2633.7,3.79692]
[1739459080595,3.79622,2634.2,2633.5,3.79722]
[1739459080943,0.565,2634.1,2633.4,1.0]
[1739459081151,0.55,2633.7,2633.4,1.0]
[1739459081849,3.79722,2633.5,2633.4,1.0]
[1739459082012,0.55,2633.5,2633.4,1.0]
[1739459082536,4.34722,2633.5,2633.4,1.0]
[1739459082743,9.64222,2633.5,2633.4,1.0]
[1739459083391,5.83,2633.5,2633.4,1.0]
[1739459083949,9.64222,2633.5,2633.4,1.0]
[1739459084847,10.46722,2633.5,2633.4,1.0]
[1739459086228,10.79422,2633.5,2633.4,1.0]
[1739459086864,7.96422,2633.5,2633.4,1.0]
[1739459087236,7.62972,2633.5,2633.4,1.0]
[1739459087437,3.79684,2633.8,2633.4,1.0]
[1739459087753,3.0075,2633.7,2633.4,1.0]
[1739459087944,3.80451,2633.7,2633.4,1.0]
[1739459088373,3.79639,2634.1,2633.4,1.0]
[1739459088576,3.79638,2634.1,2633.5,0.8292]
[1739459088786,0.0075,2634.0,2633.5,4.62635]
[1739459088948,0.0075,2634.0,2633.5,0.8292]
[1739459089147,0.55,2633.8,2633.5,4.6264]
[1739459089342,0.8237,2634.2,2633.5,0.8292]
[1739459089542,4.56147,2634.7,2634.0,3.79648]
[1739459089775,7.59116,2634.7,2634.1,3.79633]
[1739459089946,3.81078,2634.6,2633.9,3.79655]
[1739459090283,3.81078,2634.6,2633.5,0.8292]
[1739459090284,3.79648,2634.1,2633.5,4.62629]
[1739459090500,3.0,2634.4,2633.8,3.79678]
[1739459090640,6.79606,2634.4,2633.8,3.79678]
[1739459090841,3.0,2634.4,2633.9,3.79663]
[1739459091270,0.55,2634.3,2634.1,3.79635]
[1739459091470,3.8107,2634.6,2633.5,4.62632]
[1739459091471,3.79568,2634.6,2634.0,3.79649]
[1739459091688,6.0814,2634.9,2633.5,0.8292]
[1739459091990,0.55,2634.1,2633.7,3.79686]
[1739459092189,3.81093,2634.4,2633.5,0.8292]
[1739459092190,0.015,2634.4,2633.5,0.8292]
[1739459092373,6.0814,2634.9,2633.5,0.8292]
[1739459092542,6.0814,2634.9,2634.0,3.79641]
[1739459092543,3.79571,2634.6,2634.0,3.79641]
[1739459092742,4.34588,2634.5,2634.0,3.79641]
[1739459092942,0.55,2634.3,2633.5,0.8292]
[1739459093169,0.55,2634.3,2633.8,3.79676]
[1739459093373,3.0,2634.6,2633.5,0.8292]
[1739459093585,3.79586,2634.5,2633.9,3.79657]
[1739459093797,0.59745312,2634.4,2633.9,3.79657]
[1739459094087,0.0075,2634.3,2633.7,3.79691]
[1739459094293,0.0075,2634.3,2633.9,3.79652]
[1739459094644,0.55,2634.0,2633.5,4.62637]
[1739459094879,4.34658,2634.0,2633.5,4.62637]
[1739459095260,0.0075,2634.0,2633.7,3.79682]
[1739459095463,0.0075,2634.0,2633.5,4.6263]
[1739459095693,0.0075,2634.0,2633.6,3.79698]
[1739459096000,0.0075,2634.0,2633.7,3.79684]
[1739459096299,0.0075,2634.0,2633.8,3.79678]
[1739459096589,0.55,2634.1,2633.8,3.79678]
[1739459097086,0.55,2633.9,2633.5,4.62632]
[1739459097294,0.55,2633.9,2633.6,3.79694]
[1739459097797,0.55,2633.7,2633.4,1.0]
[1739459098297,2.28,2634.1,2633.6,3.79703]
[1739459098594,2.28,2634.1,2633.8,3.79678]
[1739459098762,0.015,2634.3,2633.7,3.79684]
[1739459098964,3.79647,2634.1,2633.6,3.79694]
[1739459099176,2.83,2634.2,2634.0,3.79649]
[1739459099394,2.83,2634.2,2633.8,3.79673]
[1739459099546,2.83,2634.2,2633.8,3.79672]
[1739459099748,2.83,2634.2,2633.8,3.7967]
[1739459099950,5.28,2634.5,2634.0,3.79643]
[1739459100194,2.28,2634.7,2634.2,3.79613]
[1739459100395,6.07592,2634.5,2633.9,8.37851]
[1739459100598,0.0075,2634.3,2633.9,0.7854]
[1739459100893,0.55,2633.8,2633.4,4.79736]
[1739459101108,0.7606,2634.2,2633.4,1.0]
[1739459101247,10.63318,2634.2,2633.7,3.79682]
[1739459101447,0.55,2633.9,2633.5,7.59425]
[1739459101706,0.55,2633.9,2633.6,3.79707]
[1739459102094,0.55,2633.9,2633.5,7.59426]
[1739459102296,2.2875,2634.2,2633.4,1.0]
[1739459102502,2.2875,2634.2,2633.5,3.79722]
[1739459102656,0.55,2634.1,2634.0,3.79639]
[1739459102993,0.55,2633.6,2633.4,1.0]
[1739459103176,5.83,2633.6,2633.5,3.79722]
[1739459103361,5.28,2633.6,2633.4,4.79735]
[1739459103553,5.28,2633.6,2633.4,1.0]
[1739459104101,5.28,2633.6,2633.4,4.79723]
[1739459104299,5.28,2633.6,2633.4,1.0]
[1739459104696,2.8375,2633.5,2633.4,1.0]
[1739459104900,8.125,2633.5,2633.4,1.0]
[1739459105099,11.92222,2633.5,2633.4,1.0]
[1739459105396,14.92222,2633.5,2633.4,1.0]
[1739459105670,15.24922,2633.5,2633.4,8.7e-06]
[1739459105872,15.43553024,2633.5,2633.4,8.7e-06]
[1739459106011,15.24922,2633.5,2633.4,8.7e-06]
[1739459106434,16.01352,2633.5,2633.4,8.7e-06]
[1739459107136,16.52683024,2633.5,2633.4,8.7e-06]
[1739459107348,16.52683024,2633.5,2632.1,0.005]
[1739459107349,3.7991,2632.2,2632.1,0.005]
[1739459107655,4.3641,2632.2,2632.1,0.005]
[1739459107869,0.565,2632.2,2632.1,0.005]
[1739459108051,0.55,2632.2,2632.1,0.005]
[1739459108523,3.7982,2632.9,2632.1,0.005]
[1739459108721,0.327,2633.1,2632.6,3.79849]
[1739459108922,5.28,2633.5,2633.0,3.79788]
[1739459109142,5.28,2633.7,2632.9,0.7595]
[1739459109380,0.8251,2632.6,2632.1,0.005]
[1739459109522,3.79842,2632.7,2632.1,0.005]
[1739459109868,0.8251,2633.2,2632.3,3.79895]
[1739459110051,0.7502,2633.5,2632.4,0.455845]
[1739459110252,0.7502,2633.5,2632.5,3.79864]
[1739459110253,0.04747378,2633.4,2632.5,3.79864]
[1739459110468,0.55,2632.9,2632.3,3.79884]
[1739459110669,0.55,2632.9,2632.1,0.005]
[1739459110670,3.79881,2632.4,2632.1,0.005]
[1739459110825,0.55,2632.2,2632.1,0.005]
[1739459111026,4.40409364,2632.2,2632.1,0.005]
[1739459111326,9.6945953,2632.2,2632.1,0.005]
[1739459111525,9.64739,2632.0,2631.9,0.1451]
[1739459111775,7.36439,2632.0,2631.9,0.1451]
[1739459112434,7.41189086,2632.0,2631.9,0.1451]
[1739459112687,3.565,2632.0,2631.9,0.1451]
[1739459112834,0.55,2632.0,2631.9,0.1451]
[1739459113037,3.79884,2632.4,2631.9,0.1451]
[1739459113269,3.79939,2632.0,2631.9,0.1451]
[1739459113471,7.36439,2632.0,2631.9,0.1451]
[1739459114195,4.3378,2632.0,2631.9,0.1451]
[1739459114376,0.5575,2632.0,2631.9,0.1451]
[1739459114578,0.5575,2632.0,2631.9,3.94463]
[1739459114744,0.5575,2632.0,2631.9,0.1451]
[1739459115480,3.79902,2632.3,2631.9,0.1451]
[1739459115678,0.55,2632.0,2631.9,0.1451]
[1739459115881,7.13942,2632.4,2631.9,0.1451]
[1739459116183,0.0075,2632.2,2631.9,0.1451]
[1739459116354,3.0,2632.4,2631.9,0.1451]
[1739459116553,0.0075,2632.1,2631.9,0.1451]
[1739459116879,4.35689,2632.0,2631.9,0.1451]
[1739459117088,4.36439,2632.0,2631.9,0.1451]
[1739459117282,0.55,2632.0,2631.9,0.1451]
[1739459117492,4.60302,2632.4,2631.9,0.1451]
[1739459117639,3.79892,2632.4,2631.9,0.1451]
[1739459117839,0.015,2632.4,2632.1,3.79913]
[1739459118042,0.8188,2632.8,2632.3,3.79885]
[1739459118252,3.79781,2633.1,2632.1,0.851092]
[1739459118486,0.04747985,2633.0,2631.9,4.71191]
[1739459118641,3.79809,2632.9,2632.3,3.79884]
[1739459118983,0.0075,2633.1,2632.5,3.79864]
[1739459119185,3.79758,2633.3,2632.7,3.79826]
[1739459119496,3.79758,2633.3,2631.9,3.94461]
[1739459119497,3.79814,2632.9,2632.4,3.79877]
[1739459119703,4.34846,2632.7,2632.1,4.59378]
[1739459119864,4.34846,2632.7,2632.1,8.39287]
[1739459120203,4.34846,2632.7,2632.1,4.59371]
[1739459120362,3.79769,2633.2,2632.1,4.59371]
[1739459120363,0.55,2632.8,2632.6,3.7985]
[1739459120580,9.07697,2633.7,2632.7,3.79837]
[1739459120581,1.0834,2633.5,2632.7,3.79837]
[1739459120780,3.79775,2633.2,2632.7,3.79837]
[1739459121099,0.015,2633.0,2632.5,3.79857]
[1739459121298,3.79759,2633.3,2632.7,3.79834]
[1739459121602,0.55,2632.8,2632.3,3.79886]
[1739459121915,0.55,2633.2,2632.5,3.79866]
[1739459122078,0.55,2633.2,2632.7,3.79838]
[1739459122258,5.83,2633.2,2632.7,3.79834]
[1739459122713,5.83,2633.2,2632.7,3.79828]
[1739459122906,5.83,2633.2,2632.7,4.60048]
[1739459123108,5.83,2633.2,2632.9,3.79805]
[1739459123258,5.83,2633.2,2632.7,8.39876]
[1739459123660,5.83,2633.2,2632.7,4.60047]
[1739459123863,5.83,2633.2,2632.3,4.62552]
[1739459123864,0.55,2632.9,2632.3,4.62552]
[1739459124095,3.8457404,2632.8,2632.3,4.62552]
[1739459124344,3.79826,2632.8,2632.3,4.62552]
[1739459124489,0.55,2632.9,2632.4,3.79879]
[1739459124890,0.55,2632.6,2632.3,0.8267]
[1739459125214,3.79818,2632.9,2632.0,0.8012]
[1739459125391,3.79818,2632.9,2632.3,3.79881]
[1739459125592,0.565,2632.8,2632.4,3.79879]
[1739459125831,0.565,2632.8,2632.4,7.59748]
[1739459125991,0.565,2632.8,2632.4,3.79869]
[1739459126353,5.28,2633.2,2632.0,0.8012]
[1739459126554,0.55,2632.8,2632.3,3.79891]
[1739459126766,0.55,2632.8,2632.2,3.79902]
[1739459126767,0.55,2632.8,2632.4,3.79877]
[1739459127244,4.34825,2632.8,2632.3,3.79895]
[1739459127454,0.0075,2633.1,2632.2,3.79905]
[1739459127629,0.0075,2633.0,2632.7,3.7983]
[1739459127831,0.0075,2633.0,2632.7,3.79828]
[1739459127990,8.28,2633.3,2632.9,3.79802]
[1739459128209,8.28,2633.3,2632.1,3.79924]
[1739459128210,4.12904,2633.7,2633.1,7.59547]
[1739459128423,4.12904,2633.7,2633.2,3.79764]
[1739459128701,3.79727,2633.5,2633.0,3.79786]
[1739459129161,3.79708,2633.6,2633.0,3.79786]
[1739459129467,3.7968,2633.8,2633.4,3.79724]
[1739459129772,6.4243,2633.9,2633.4,3.79724]
[1739459130062,0.332,2633.9,2633.5,3.7972]
[1739459130209,0.332,2633.9,2633.3,0.8212]
[1739459130415,3.7968,2633.8,2633.3,5.080517]
[1739459130658,3.7968,2633.8,2633.3,4.61862]
[1739459130968,3.79707,2633.7,2633.3,0.8212]
[1739459131145,0.55,2633.8,2633.3,4.61867]
[1739459131473,3.79763,2633.3,2632.8,3.7982]
[1739459131767,3.79763,2633.3,2632.6,4.57655]
[1739459131768,0.04747388,2633.2,2632.6,4.57655]
[1739459131997,3.79753,2633.3,2632.7,3.79827]
[1739459132336,0.65172622,2633.2,2632.7,3.79836]
[1739459132536,3.79795,2633.0,2632.6,0.7781]
[1739459132807,3.79812,2632.9,2632.4,3.79878]
[1739459133097,0.55,2632.8,2632.3,3.79888]
[1739459133275,0.55,2632.8,2632.5,3.79864]
[1739459133589,0.09986834,2632.7,2632.6,3.79849]
[1739459133937,0.5575,2633.2,2632.9,3.798]
[1739459134137,5.28,2633.3,2632.2,3.77]
[1739459134379,5.28,2633.3,2633.0,3.79793]
[1739459134581,5.28,2633.3,2632.9,3.79806]
[1739459134736,5.28,2633.3,2633.0,3.79781]
[1739459134938,5.28,2633.3,2632.9,0.7501]
[1739459135691,9.07754,2633.3,2632.8,3.79822]
[1739459135833,9.07754,2633.3,2632.7,3.79827]
[1739459135834,4.34773,2633.2,2632.7,3.79827]
[1739459136033,4.34773,2633.2,2632.5,5.36196913]
[1739459136034,2.833,2633.2,2632.5,0.8115]
[1739459136300,4.3481,2632.9,2632.4,3.79867]
[1739459136599,3.79826,2632.8,2632.3,3.79888]
[1739459137146,0.55,2632.9,2632.4,3.79875]
[1739459137392,0.55,2632.9,2632.5,3.79859]
[1739459137593,0.09976838,2632.8,2632.6,3.79845]
[1739459138090,3.79775,2633.2,2632.7,3.79838]
[1739459138298,5.28,2633.3,2632.2,0.7774]
[1739459138299,3.79824,2632.8,2632.2,0.7774]
[1739459138458,3.79847,2632.7,2632.2,4.57639]
[1739459138655,3.79824,2632.8,2632.3,3.79894]
[1739459138876,0.55,2632.8,2632.3,3.79885]
[1739459139073,0.55,2632.8,2632.6,3.79844]
[1739459139272,5.2875,2633.2,2632.9,3.79802]
[1739459139551,0.329,2633.5,2633.1,3.7978]
[1739459139855,3.7971,2633.6,2633.0,3.7979]
[1739459140052,3.7974,2633.4,2632.9,0.8268]
[1739459140255,0.55,2633.2,2632.7,3.79835]
[1739459140452,0.55,2633.0,2632.5,3.79853]
[1739459140714,3.80497,2633.4,2632.3,0.8066]
[1739459140841,3.80497,2633.4,2632.9,3.79805]
[1739459141040,0.55,2633.3,2632.9,3.79802]
[1739459141254,0.0075,2633.7,2633.2,3.79765]
[1739459141472,0.0075,2633.7,2633.1,3.79778]
[1739459141801,3.79715,2633.6,2633.0,3.7978]
[1739459141944,3.79728,2633.5,2633.1,3.79777]
[1739459142144,3.7973,2633.5,2633.0,3.79793]
[1739459142403,0.55,2633.4,2632.9,4.54859]
[1739459142752,0.55,2633.4,2633.1,3.7978]
[1739459143183,4.34703,2633.7,2633.2,3.79765]
[1739459143401,4.34703,2633.7,2633.2,3.79764]
[1739459143402,4.34697,2633.7,2633.2,3.79764]
[1739459143608,0.8015,2633.8,2633.0,3.79785]
[1739459143769,0.55,2633.5,2633.0,3.79785]
[1739459144119,0.55,2633.5,2632.9,0.7506]
[1739459144323,4.34727,2633.5,2633.0,3.79785]
[1739459144530,3.79739,2633.4,2632.9,4.5486]
[1739459144670,4.34727,2633.5,2632.9,0.7506]
[1739459144671,0.55,2633.5,2632.9,0.7506]
[1739459144876,0.55,2633.5,2633.1,3.7977]
[1739459145094,0.55,2633.6,2633.2,3.79751]
[1739459145634,0.8015,2633.8,2633.4,3.7973]
[1739459145836,3.79695,2633.7,2633.2,3.79755]
[1739459146175,0.55,2633.7,2633.4,3.79734]
[1739459146380,3.79715,2633.6,2633.1,3.79774]
[1739459146567,0.55,2633.5,2633.0,3.79787]
[1739459146767,0.55,2633.5,2633.0,3.7978]
[1739459146768,4.34724,2633.5,2633.0,3.7978]
[1739459146976,0.55,2633.6,2633.2,3.79765]
[1739459147180,3.79701,2633.7,2633.3,3.79751]
[1739459147414,4.59829,2633.8,2633.3,3.79751]
[1739459147877,0.55,2633.7,2633.4,3.79736]
[1739459148273,5.28,2633.9,2633.7,3.79685]
[1739459148540,5.28,2634.1,2633.8,3.79677]
[1739459148712,3.79657,2634.0,2633.5,3.79715]
[1739459149114,3.79672,2633.9,2633.3,3.7975]
[1739459149340,4.34644,2634.1,2632.9,9.68690503]
[1739459149482,5.28,2634.2,2633.3,3.7647]
[1739459149683,5.28,2634.2,2633.7,3.79682]
[1739459149994,0.55,2634.2,2633.8,3.79666]
[1739459150348,0.55,2633.9,2633.5,3.79713]
[1739459150484,3.79658,2634.0,2633.2,5.19097429]
[1739459150485,4.34651,2634.0,2633.4,3.79735]
[1739459150852,0.55,2633.7,2633.4,3.79735]
[1739459151062,3.79661,2634.0,2633.5,3.7972]
[1739459151216,0.55,2633.9,2633.5,3.7972]
[1739459151599,4.34676,2633.9,2633.4,3.7973]
[1739459151856,3.79632,2634.2,2633.7,3.79693]
[1739459152150,0.8228,2634.4,2633.6,3.79706]
[1739459152352,3.79638,2634.1,2633.6,3.79699]
[1739459152660,0.10055124,2634.2,2634.1,3.79636]
[1739459152820,0.7751,2634.8,2634.4,3.7959]
[1739459153160,0.7751,2634.8,2634.2,3.79619]
[1739459153161,0.10055124,2634.7,2634.2,3.79619]
[1739459153340,3.79571,2634.6,2634.0,7.5928]
[1739459153503,4.34572,2634.6,2634.0,3.7964]
[1739459153697,4.34572,2634.6,2633.8,5.19097429]
[1739459153698,0.0075,2634.5,2633.7,4.54753]
[1739459153901,3.79625,2634.2,2633.7,4.54746]
[1739459154149,4.346,2634.4,2633.7,0.7506]
[1739459154454,0.565,2634.6,2633.7,4.54743]
[1739459154675,3.79648,2634.1,2633.6,3.79707]
[1739459154978,0.1008065,2634.0,2633.9,3.79657]
[1739459155283,6.80324,2634.6,2633.9,3.79657]
[1739459155284,3.7958,2634.5,2633.9,3.79657]
[1739459155458,3.8967665,2634.4,2633.9,3.79657]
[1739459155639,3.79616,2634.3,2633.7,3.79683]
[1739459155981,0.55,2633.7,2633.3,3.79741]
[1739459156190,0.3345,2634.1,2633.6,3.797]
[1739459156327,3.79657,2634.0,2633.4,3.79724]
[1739459156684,0.55,2633.9,2633.5,3.79721]
[1739459156835,0.1008065,2633.9,2633.7,3.79689]
[1739459157236,0.1008065,2633.9,2633.8,3.79679]
[1739459157533,3.796,2634.4,2633.8,3.79679]
[1739459157534,3.79606,2634.4,2633.9,3.79651]
[1739459157763,0.55,2634.4,2634.0,3.79647]
[1739459157970,5.28,2634.5,2634.1,3.79633]
[1739459158329,0.8215,2634.9,2634.4,3.79584]
[1739459158490,4.61672,2634.9,2634.4,3.79584]
[1739459158858,0.55,2634.8,2634.2,8.98705429]
[1739459159060,0.55,2634.8,2634.2,5.19097429]
[1739459159248,3.79551,2634.7,2634.2,8.98709429]
[1739459159761,2.833,2634.8,2634.0,3.79641]
[1739459159984,3.79593,2634.4,2633.9,8.98761429]